fUST/lending_fUST_20260530
["ID","MTS","AMOUNT","RATE_DAILY","PERIOD"]
[423387545,1780074646000,-603.85,8.767e-05,2]
[423387633,1780074647000,-500.0,9.041e-05,2]
[423387629,1780074647000,-500.0,9.041e-05,2]
[423387625,1780074647000,-500.0,9.041e-05,2]
[423387621,1780074647000,-500.0,9.041e-05,2]
[423387619,1780074647000,-500.0,9.041e-05,2]
[423387616,1780074647000,-500.0,9.041e-05,2]
[423387617,1780074647000,-500.0,9.041e-05,2]
[423387615,1780074647000,-500.0,9.041e-05,2]
[423387627,1780074647000,-500.0,9.041e-05,2]
[423387618,1780074647000,-500.0,9.041e-05,2]
[423387620,1780074647000,-500.0,9.041e-05,2]
[423387622,1780074647000,-500.0,9.041e-05,2]
[423387628,1780074647000,-500.0,9.041e-05,2]
[423387624,1780074647000,-935.6354,9.041e-05,2]
[423387634,1780074647000,-500.0,9.041e-05,2]
[423387632,1780074647000,-500.0,9.041e-05,2]
[423387626,1780074647000,-500.0,9.041e-05,2]
[423387631,1780074647000,-500.0,9.041e-05,2]
[423387646,1780074647000,-500.0,9.041e-05,2]
[423387636,1780074647000,-500.0,9.041e-05,2]
[423387638,1780074647000,-500.0,9.041e-05,2]
[423387637,1780074647000,-500.0,9.041e-05,2]
[423387640,1780074647000,-500.0,9.041e-05,2]
[423387642,1780074647000,-500.0,9.041e-05,2]
[423387613,1780074647000,-500.0,9.041e-05,2]
[423387639,1780074647000,-500.0,9.041e-05,2]
[423387630,1780074647000,-500.0,9.041e-05,2]
[423387623,1780074647000,-500.0,9.041e-05,2]
[423387605,1780074647000,-500.0,9.041e-05,2]
[423387612,1780074647000,-500.0,9.041e-05,2]
[423387645,1780074647000,-500.0,9.041e-05,2]
[423387588,1780074647000,-500.0,8.767e-05,2]
[423387586,1780074647000,-500.0,8.767e-05,2]
[423387587,1780074647000,-1129.09,8.767e-05,2]
[423387589,1780074647000,-500.0,8.767e-05,2]
[423387597,1780074647000,-1629.539651,8.993e-05,2]
[423387598,1780074647000,-500.0,9.041e-05,2]
[423387590,1780074647000,-500.0,8.767e-05,2]
[423387591,1780074647000,-500.0,8.767e-05,2]
[423387592,1780074647000,-500.0,8.767e-05,2]
[423387595,1780074647000,-420.0,8.949e-05,2]
[423387596,1780074647000,-2126.1220834,8.97e-05,2]
[423387614,1780074647000,-421.1349321,9.041e-05,2]
[423387594,1780074647000,-168.092411,8.946e-05,2]
[423387610,1780074647000,-500.0,9.041e-05,2]
[423387604,1780074647000,-500.0,9.041e-05,2]
[423387607,1780074647000,-500.0,9.041e-05,2]
[423387606,1780074647000,-500.0,9.041e-05,2]
[423387608,1780074647000,-500.0,9.041e-05,2]
[423387599,1780074647000,-500.0,9.041e-05,2]
[423387600,1780074647000,-501.8787659,9.041e-05,2]
[423387602,1780074647000,-500.0,9.041e-05,2]
[423387609,1780074647000,-500.0,9.041e-05,2]
[423387601,1780074647000,-500.0,9.041e-05,2]
[423387603,1780074647000,-500.0,9.041e-05,2]
[423387611,1780074647000,-500.0,9.041e-05,2]
[423387593,1780074647000,-168.092411,8.823e-05,2]
[423387647,1780074647000,-500.0,9.041e-05,2]
[423387641,1780074647000,-360.78248467,9.041e-05,2]
[423387702,1780074647000,-500.0,9.041e-05,2]
[423387675,1780074647000,-552.58,9.041e-05,2]
[423387682,1780074647000,-603.91,9.041e-05,2]
[423387678,1780074647000,-500.0,9.041e-05,2]
[423387680,1780074647000,-500.0,9.041e-05,2]
[423387684,1780074647000,-500.0,9.041e-05,2]
[423387679,1780074647000,-1670.88,9.041e-05,2]
[423387676,1780074647000,-500.0,9.041e-05,2]
[423387681,1780074647000,-500.0,9.041e-05,2]
[423387687,1780074647000,-500.0,9.041e-05,2]
[423387686,1780074647000,-500.0,9.041e-05,2]
[423387683,1780074647000,-504.09,9.041e-05,2]
[423387685,1780074647000,-358.19626169,9.041e-05,2]
[423387677,1780074647000,-388.25621613,9.041e-05,2]
[423387689,1780074647000,-413.41470113,9.041e-05,2]
[423387692,1780074647000,-500.0,9.041e-05,2]
[423387690,1780074647000,-500.0,9.041e-05,2]
[423387693,1780074647000,-542.05,9.041e-05,2]
[423387697,1780074647000,-500.0,9.041e-05,2]
[423387696,1780074647000,-500.0,9.041e-05,2]
[423387694,1780074647000,-500.0,9.041e-05,2]
[423387695,1780074647000,-500.0,9.041e-05,2]
[423387698,1780074647000,-572.53,9.041e-05,2]
[423387699,1780074647000,-534.45,9.041e-05,2]
[423387701,1780074647000,-500.0,9.041e-05,2]
[423387700,1780074647000,-500.0,9.041e-05,2]
[423387644,1780074647000,-500.0,9.041e-05,2]
[423387691,1780074647000,-500.0,9.041e-05,2]
[423387669,1780074647000,-500.0,9.041e-05,2]
[423387688,1780074647000,-500.0,9.041e-05,2]
[423387671,1780074647000,-500.0,9.041e-05,2]
[423387635,1780074647000,-500.0,9.041e-05,2]
[423387666,1780074647000,-1348.75,9.041e-05,2]
[423387643,1780074647000,-500.0,9.041e-05,2]
[423387649,1780074647000,-500.0,9.041e-05,2]
[423387653,1780074647000,-500.0,9.041e-05,2]
[423387659,1780074647000,-500.0,9.041e-05,2]
[423387656,1780074647000,-500.0,9.041e-05,2]
[423387650,1780074647000,-500.0,9.041e-05,2]
[423387655,1780074647000,-500.0,9.041e-05,2]
[423387660,1780074647000,-500.0,9.041e-05,2]
[423387648,1780074647000,-500.0,9.041e-05,2]
[423387657,1780074647000,-500.0,9.041e-05,2]
[423387651,1780074647000,-500.0,9.041e-05,2]
[423387658,1780074647000,-500.0,9.041e-05,2]
[423387664,1780074647000,-944.99,9.041e-05,2]
[423387654,1780074647000,-500.0,9.041e-05,2]
[423387661,1780074647000,-500.0,9.041e-05,2]
[423387662,1780074647000,-500.0,9.041e-05,2]
[423387672,1780074647000,-500.0,9.041e-05,2]
[423387673,1780074647000,-500.0,9.041e-05,2]
[423387674,1780074647000,-500.0,9.041e-05,2]
[423387663,1780074647000,-500.0,9.041e-05,2]
[423387665,1780074647000,-500.0,9.041e-05,2]
[423387668,1780074647000,-500.0,9.041e-05,2]
[423387652,1780074647000,-500.0,9.041e-05,2]
[423387670,1780074647000,-245.4721892,9.041e-05,2]
[423387667,1780074647000,-500.0,9.041e-05,2]
[423387738,1780074648000,-500.0,9.041e-05,2]
[423387746,1780074648000,-500.0,9.041e-05,2]
[423387733,1780074648000,-3745.47,9.041e-05,2]
[423387744,1780074648000,-500.0,9.041e-05,2]
[423387734,1780074648000,-500.0,9.041e-05,2]
[423387731,1780074648000,-500.0,9.041e-05,2]
[423387742,1780074648000,-500.0,9.041e-05,2]
[423387741,1780074648000,-500.0,9.041e-05,2]
[423387739,1780074648000,-500.0,9.041e-05,2]
[423387737,1780074648000,-1807.05,9.041e-05,2]
[423387755,1780074648000,-168.092411,9.07e-05,2]
[423387743,1780074648000,-500.0,9.041e-05,2]
[423387745,1780074648000,-500.0,9.041e-05,2]
[423387757,1780074648000,-151.0,9.315e-05,2]
[423387754,1780074648000,-500.0,9.041e-05,2]
[423387750,1780074648000,-1129.09,9.041e-05,2]
[423387753,1780074648000,-500.0,9.041e-05,2]
[423387752,1780074648000,-500.0,9.041e-05,2]
[423387756,1780074648000,-151.0,9.315e-05,2]
[423387748,1780074648000,-500.0,9.041e-05,2]
[423387749,1780074648000,-500.0,9.041e-05,2]
[423387751,1780074648000,-500.0,9.041e-05,2]
[423387768,1780074648000,-500.0,9.315e-05,2]
[423387758,1780074648000,-500.0,9.315e-05,2]
[423387769,1780074648000,-501.93037863,9.315e-05,2]
[423387760,1780074648000,-500.0,9.315e-05,2]
[423387735,1780074648000,-500.0,9.041e-05,2]
[423387747,1780074648000,-500.0,9.041e-05,2]
[423387736,1780074648000,-500.0,9.041e-05,2]
[423387764,1780074648000,-500.0,9.315e-05,2]
[423387732,1780074648000,-591.15,9.041e-05,2]
[423387704,1780074648000,-559.57,9.041e-05,2]
[423387703,1780074648000,-500.0,9.041e-05,2]
[423387705,1780074648000,-343.45537793,9.041e-05,2]
[423387706,1780074648000,-500.0,9.041e-05,2]
[423387716,1780074648000,-391.72986562,9.041e-05,2]
[423387717,1780074648000,-1567.21,9.041e-05,2]
[423387707,1780074648000,-500.0,9.041e-05,2]
[423387710,1780074648000,-500.0,9.041e-05,2]
[423387708,1780074648000,-500.0,9.041e-05,2]
[423387709,1780074648000,-500.0,9.041e-05,2]
[423387714,1780074648000,-603.85,9.041e-05,2]
[423387711,1780074648000,-500.0,9.041e-05,2]
[423387713,1780074648000,-500.0,9.041e-05,2]
[423387740,1780074648000,-1766.25619342,9.041e-05,2]
[423387712,1780074648000,-500.0,9.041e-05,2]
[423387719,1780074648000,-500.0,9.041e-05,2]
[423387718,1780074648000,-1028.27,9.041e-05,2]
[423387721,1780074648000,-454.44,9.041e-05,2]
[423387720,1780074648000,-500.0,9.041e-05,2]
[423387730,1780074648000,-500.0,9.041e-05,2]
[423387722,1780074648000,-500.0,9.041e-05,2]
[423387729,1780074648000,-500.0,9.041e-05,2]
[423387724,1780074648000,-500.0,9.041e-05,2]
[423387726,1780074648000,-500.0,9.041e-05,2]
[423387723,1780074648000,-500.0,9.041e-05,2]
[423387725,1780074648000,-500.0,9.041e-05,2]
[423387728,1780074648000,-500.0,9.041e-05,2]
[423387727,1780074648000,-500.0,9.041e-05,2]
[423387715,1780074648000,-500.0,9.041e-05,2]
[423387761,1780074648000,-564.72204114,9.315e-05,2]
[423387824,1780074648000,-559.57,9.315e-05,2]
[423387762,1780074648000,-500.0,9.315e-05,2]
[423387797,1780074648000,-500.0,9.315e-05,2]
[423387798,1780074648000,-500.0,9.315e-05,2]
[423387805,1780074648000,-500.0,9.315e-05,2]
[423387802,1780074648000,-944.99,9.315e-05,2]
[423387800,1780074648000,-500.0,9.315e-05,2]
[423387801,1780074648000,-586.06,9.315e-05,2]
[423387803,1780074648000,-500.0,9.315e-05,2]
[423387807,1780074648000,-500.0,9.315e-05,2]
[423387806,1780074648000,-500.0,9.315e-05,2]
[423387804,1780074648000,-1348.75,9.315e-05,2]
[423387809,1780074648000,-315.49,9.315e-05,2]
[423387810,1780074648000,-1670.88,9.315e-05,2]
[423387811,1780074648000,-500.0,9.315e-05,2]
[423387812,1780074648000,-500.0,9.315e-05,2]
[423387813,1780074648000,-603.91,9.315e-05,2]
[423387815,1780074648000,-500.0,9.315e-05,2]
[423387814,1780074648000,-504.09,9.315e-05,2]
[423387818,1780074648000,-492.73,9.315e-05,2]
[423387817,1780074648000,-542.05,9.315e-05,2]
[423387816,1780074648000,-195.44,9.315e-05,2]
[423387819,1780074648000,-500.0,9.315e-05,2]
[423387822,1780074648000,-534.45,9.315e-05,2]
[423387821,1780074648000,-572.53,9.315e-05,2]
[423387825,1780074648000,-500.0,9.315e-05,2]
[423387823,1780074648000,-500.0,9.315e-05,2]
[423387820,1780074648000,-500.0,9.315e-05,2]
[423387759,1780074648000,-500.0,9.315e-05,2]
[423387799,1780074648000,-190.0,9.315e-05,2]
[423387795,1780074648000,-500.0,9.315e-05,2]
[423387808,1780074648000,-552.58,9.315e-05,2]
[423387792,1780074648000,-500.0,9.315e-05,2]
[423387796,1780074648000,-360.24,9.315e-05,2]
[423387765,1780074648000,-500.0,9.315e-05,2]
[423387766,1780074648000,-500.0,9.315e-05,2]
[423387767,1780074648000,-500.0,9.315e-05,2]
[423387770,1780074648000,-500.0,9.315e-05,2]
[423387772,1780074648000,-500.0,9.315e-05,2]
[423387773,1780074648000,-500.0,9.315e-05,2]
[423387775,1780074648000,-500.0,9.315e-05,2]
[423387780,1780074648000,-500.0,9.315e-05,2]
[423387778,1780074648000,-500.0,9.315e-05,2]
[423387779,1780074648000,-500.0,9.315e-05,2]
[423387774,1780074648000,-500.0,9.315e-05,2]
[423387777,1780074648000,-935.6354,9.315e-05,2]
[423387776,1780074648000,-500.0,9.315e-05,2]
[423387763,1780074648000,-500.0,9.315e-05,2]
[423387781,1780074648000,-500.0,9.315e-05,2]
[423387771,1780074648000,-500.0,9.315e-05,2]
[423387789,1780074648000,-500.0,9.315e-05,2]
[423387794,1780074648000,-500.0,9.315e-05,2]
[423387791,1780074648000,-500.0,9.315e-05,2]
[423387787,1780074648000,-500.0,9.315e-05,2]
[423387786,1780074648000,-225.84,9.315e-05,2]
[423387788,1780074648000,-500.0,9.315e-05,2]
[423387790,1780074648000,-500.0,9.315e-05,2]
[423387785,1780074648000,-500.0,9.315e-05,2]
[423387783,1780074648000,-607.33909288,9.315e-05,2]
[423387793,1780074648000,-500.0,9.315e-05,2]
[423387782,1780074648000,-500.0,9.315e-05,2]
[423387784,1780074648000,-500.0,9.315e-05,2]
[423387864,1780074649000,-500.0,9.589e-05,2]
[423387868,1780074649000,-500.0,9.589e-05,2]
[423387866,1780074649000,-500.0,9.589e-05,2]
[423387860,1780074649000,-500.0,9.589e-05,2]
[423387863,1780074649000,-500.0,9.589e-05,2]
[423387872,1780074649000,-500.0,9.589e-05,2]
[423387861,1780074649000,-206.76,9.589e-05,2]
[423387871,1780074649000,-335.3,9.589e-05,2]
[423387870,1780074649000,-716.1728,9.589e-05,2]
[423387859,1780074649000,-1629.539651,9.329e-05,2]
[423387869,1780074649000,-500.0,9.589e-05,2]
[423387862,1780074649000,-500.0,9.589e-05,2]
[423387865,1780074649000,-500.0,9.589e-05,2]
[423387877,1780074649000,-944.99,9.589e-05,2]
[423387873,1780074649000,-500.0,9.589e-05,2]
[423387874,1780074649000,-500.0,9.589e-05,2]
[423387875,1780074649000,-500.0,9.589e-05,2]
[423387878,1780074649000,-500.0,9.589e-05,2]
[423387876,1780074649000,-522.92,9.589e-05,2]
[423387880,1780074649000,-500.0,9.589e-05,2]
[423387890,1780074649000,-542.05,9.589e-05,2]
[423387881,1780074649000,-500.0,9.589e-05,2]
[423387879,1780074649000,-1348.75,9.589e-05,2]
[423387891,1780074649000,-500.0,9.589e-05,2]
[423387892,1780074649000,-165.68,9.589e-05,2]
[423387883,1780074649000,-552.58,9.589e-05,2]
[423387882,1780074649000,-500.0,9.589e-05,2]
[423387867,1780074649000,-500.0,9.589e-05,2]
[423387853,1780074649000,-500.0,9.315e-05,2]
[423387831,1780074649000,-1567.21,9.315e-05,2]
[423387855,1780074649000,-500.0,9.315e-05,2]
[423387829,1780074649000,-603.85,9.315e-05,2]
[423387828,1780074649000,-500.0,9.315e-05,2]
[423387827,1780074649000,-500.0,9.315e-05,2]
[423387826,1780074649000,-500.0,9.315e-05,2]
[423387830,1780074649000,-633.96,9.315e-05,2]
[423387832,1780074649000,-1028.27,9.315e-05,2]
[423387834,1780074649000,-500.0,9.315e-05,2]
[423387844,1780074649000,-500.0,9.315e-05,2]
[423387845,1780074649000,-500.0,9.315e-05,2]
[423387833,1780074649000,-500.0,9.315e-05,2]
[423387837,1780074649000,-637.63239537,9.315e-05,2]
[423387840,1780074649000,-527.48,9.315e-05,2]
[423387836,1780074649000,-595.52,9.315e-05,2]
[423387857,1780074649000,-500.0,9.315e-05,2]
[423387841,1780074649000,-500.0,9.315e-05,2]
[423387839,1780074649000,-500.0,9.315e-05,2]
[423387838,1780074649000,-500.0,9.315e-05,2]
[423387843,1780074649000,-3745.47,9.315e-05,2]
[423387842,1780074649000,-591.15,9.315e-05,2]
[423387849,1780074649000,-1766.25619342,9.315e-05,2]
[423387846,1780074649000,-1807.05,9.315e-05,2]
[423387848,1780074649000,-500.0,9.315e-05,2]
[423387852,1780074649000,-500.0,9.315e-05,2]
[423387851,1780074649000,-500.0,9.315e-05,2]
[423387850,1780074649000,-500.0,9.315e-05,2]
[423387847,1780074649000,-500.0,9.315e-05,2]
[423387856,1780074649000,-1129.09,9.315e-05,2]
[423387858,1780074649000,-500.0,9.315e-05,2]
[423387835,1780074649000,-500.0,9.315e-05,2]
[423387887,1780074649000,-603.91,9.589e-05,2]
[423387854,1780074649000,-500.0,9.315e-05,2]
[423387888,1780074649000,-504.09,9.589e-05,2]
[423387922,1780074649000,-1629.539651,9.665e-05,2]
[423387924,1780074649000,-587.0,9.843e-05,2]
[423387923,1780074649000,-3430.5256326,9.734e-05,2]
[423387932,1780074649000,-500.0,9.863e-05,2]
[423387926,1780074649000,-500.0,9.863e-05,2]
[423387930,1780074649000,-500.0,9.863e-05,2]
[423387925,1780074649000,-553.39,9.863e-05,2]
[423387927,1780074649000,-500.0,9.863e-05,2]
[423387929,1780074649000,-500.0,9.863e-05,2]
[423387928,1780074649000,-500.0,9.863e-05,2]
[423387933,1780074649000,-474.85908908,9.863e-05,2]
[423387935,1780074649000,-500.0,9.863e-05,2]
[423387936,1780074649000,-387.5,9.863e-05,2]
[423387931,1780074649000,-500.0,9.863e-05,2]
[423387941,1780074649000,-1348.75,9.863e-05,2]
[423387943,1780074649000,-500.0,9.863e-05,2]
[423387934,1780074649000,-500.0,9.863e-05,2]
[423387939,1780074649000,-944.99,9.863e-05,2]
[423387937,1780074649000,-500.0,9.863e-05,2]
[423387938,1780074649000,-1141.4133,9.863e-05,2]
[423387942,1780074649000,-489.2,9.863e-05,2]
[423387940,1780074649000,-500.0,9.863e-05,2]
[423387946,1780074649000,-1670.88,9.863e-05,2]
[423387945,1780074649000,-552.58,9.863e-05,2]
[423387947,1780074649000,-500.0,9.863e-05,2]
[423387949,1780074649000,-603.91,9.863e-05,2]
[423387950,1780074649000,-504.09,9.863e-05,2]
[423387889,1780074649000,-500.0,9.589e-05,2]
[423387944,1780074649000,-500.0,9.863e-05,2]
[423387920,1780074649000,-500.0,9.589e-05,2]
[423387948,1780074649000,-187.63,9.863e-05,2]
[423387909,1780074649000,-500.0,9.589e-05,2]
[423387921,1780074649000,-500.0,9.589e-05,2]
[423387884,1780074649000,-1670.88,9.589e-05,2]
[423387886,1780074649000,-500.0,9.589e-05,2]
[423387894,1780074649000,-534.45,9.589e-05,2]
[423387904,1780074649000,-500.0,9.589e-05,2]
[423387905,1780074649000,-500.0,9.589e-05,2]
[423387893,1780074649000,-572.53,9.589e-05,2]
[423387895,1780074649000,-500.0,9.589e-05,2]
[423387896,1780074649000,-559.57,9.589e-05,2]
[423387898,1780074649000,-500.0,9.589e-05,2]
[423387901,1780074649000,-1028.27,9.589e-05,2]
[423387897,1780074649000,-500.0,9.589e-05,2]
[423387899,1780074649000,-603.85,9.589e-05,2]
[423387902,1780074649000,-500.0,9.589e-05,2]
[423387885,1780074649000,-500.0,9.589e-05,2]
[423387900,1780074649000,-1567.21,9.589e-05,2]
[423387903,1780074649000,-500.0,9.589e-05,2]
[423387912,1780074649000,-500.0,9.589e-05,2]
[423387910,1780074649000,-266.48,9.589e-05,2]
[423387908,1780074649000,-3745.47,9.589e-05,2]
[423387906,1780074649000,-500.0,9.589e-05,2]
[423387916,1780074649000,-500.0,9.589e-05,2]
[423387913,1780074649000,-500.0,9.589e-05,2]
[423387915,1780074649000,-500.0,9.589e-05,2]
[423387907,1780074649000,-591.15,9.589e-05,2]
[423387914,1780074649000,-500.0,9.589e-05,2]
[423387917,1780074649000,-500.0,9.589e-05,2]
[423387919,1780074649000,-1129.09,9.589e-05,2]
[423387911,1780074649000,-1807.05,9.589e-05,2]
[423387918,1780074649000,-508.96,9.589e-05,2]
[423387989,1780074650000,-1348.75,0.00010136,2]
[423387978,1780074650000,-1129.09,9.863e-05,2]
[423387982,1780074650000,-500.0,0.00010136,2]
[423387984,1780074650000,-500.0,0.00010136,2]
[423387986,1780074650000,-500.0,0.00010136,2]
[423387987,1780074650000,-944.99,0.00010136,2]
[423387988,1780074650000,-500.0,0.00010136,2]
[423387991,1780074650000,-391.48,0.00010136,2]
[423387990,1780074650000,-500.0,0.00010136,2]
[423387983,1780074650000,-500.0,0.00010136,2]
[423387977,1780074650000,-167.0595966,9.863e-05,2]
[423387985,1780074650000,-500.0,0.00010136,2]
[423387995,1780074650000,-603.91,0.00010136,2]
[423387994,1780074650000,-500.0,0.00010136,2]
[423388002,1780074650000,-444.72,0.00010136,2]
[423387993,1780074650000,-1670.88,0.00010136,2]
[423387996,1780074650000,-504.09,0.00010136,2]
[423388005,1780074650000,-500.0,0.00010136,2]
[423388004,1780074650000,-500.0,0.00010136,2]
[423388003,1780074650000,-559.57,0.00010136,2]
[423387997,1780074650000,-500.0,0.00010136,2]
[423387998,1780074650000,-542.05,0.00010136,2]
[423387999,1780074650000,-500.0,0.00010136,2]
[423387979,1780074650000,-500.0,9.863e-05,2]
[423388000,1780074650000,-572.53,0.00010136,2]
[423387992,1780074650000,-552.58,0.00010136,2]
[423387973,1780074650000,-500.0,9.863e-05,2]
[423387961,1780074650000,-1567.21,9.863e-05,2]
[423387980,1780074650000,-500.0,9.863e-05,2]
[423388001,1780074650000,-534.45,0.00010136,2]
[423387955,1780074650000,-534.45,9.863e-05,2]
[423387957,1780074650000,-559.57,9.863e-05,2]
[423387956,1780074650000,-500.0,9.863e-05,2]
[423387954,1780074650000,-572.53,9.863e-05,2]
[423387953,1780074650000,-500.0,9.863e-05,2]
[423387951,1780074650000,-500.0,9.863e-05,2]
[423387952,1780074650000,-542.05,9.863e-05,2]
[423387959,1780074650000,-500.0,9.863e-05,2]
[423387967,1780074650000,-500.0,9.863e-05,2]
[423387958,1780074650000,-500.0,9.863e-05,2]
[423387968,1780074650000,-591.15,9.863e-05,2]
[423387969,1780074650000,-3745.47,9.863e-05,2]
[423387960,1780074650000,-603.85,9.863e-05,2]
[423387966,1780074650000,-500.0,9.863e-05,2]
[423387962,1780074650000,-1028.27,9.863e-05,2]
[423387963,1780074650000,-500.0,9.863e-05,2]
[423387965,1780074650000,-500.0,9.863e-05,2]
[423387964,1780074650000,-500.0,9.863e-05,2]
[423387971,1780074650000,-1807.05,9.863e-05,2]
[423387981,1780074650000,-197.44145879,0.00010135,2]
[423387975,1780074650000,-500.0,9.863e-05,2]
[423387974,1780074650000,-500.0,9.863e-05,2]
[423387972,1780074650000,-500.0,9.863e-05,2]
[423387976,1780074650000,-500.0,9.863e-05,2]
[423387970,1780074650000,-500.0,9.863e-05,2]
[423388006,1780074650000,-603.85,0.00010136,2]
[423388008,1780074650000,-1028.27,0.00010136,2]
[423388010,1780074650000,-500.0,0.00010136,2]
[423388040,1780074650000,-500.0,0.0001041,2]
[423388042,1780074650000,-500.0,0.0001041,2]
[423388043,1780074650000,-572.53,0.0001041,2]
[423388041,1780074650000,-542.05,0.0001041,2]
[423388045,1780074650000,-559.57,0.0001041,2]
[423388044,1780074650000,-534.45,0.0001041,2]
[423388046,1780074650000,-500.0,0.0001041,2]
[423388048,1780074650000,-603.85,0.0001041,2]
[423388047,1780074650000,-500.0,0.0001041,2]
[423388038,1780074650000,-603.91,0.0001041,2]
[423388049,1780074650000,-1567.21,0.0001041,2]
[423388058,1780074650000,-3745.47,0.0001041,2]
[423388052,1780074650000,-500.0,0.0001041,2]
[423388050,1780074650000,-1028.27,0.0001041,2]
[423388051,1780074650000,-500.0,0.0001041,2]
[423388060,1780074650000,-1807.05,0.0001041,2]
[423388059,1780074650000,-500.0,0.0001041,2]
[423388053,1780074650000,-500.0,0.0001041,2]
[423388055,1780074650000,-1026.4926,0.0001041,2]
[423388054,1780074650000,-500.0,0.0001041,2]
[423388056,1780074650000,-500.0,0.0001041,2]
[423388063,1780074650000,-500.0,0.0001041,2]
[423388061,1780074650000,-500.0,0.0001041,2]
[423388064,1780074650000,-500.0,0.0001041,2]
[423388062,1780074650000,-500.0,0.0001041,2]
[423388039,1780074650000,-504.09,0.0001041,2]
[423388037,1780074650000,-500.0,0.0001041,2]
[423388057,1780074650000,-591.15,0.0001041,2]
[423388036,1780074650000,-1670.88,0.0001041,2]
[423388034,1780074650000,-500.0,0.0001041,2]
[423388017,1780074650000,-500.0,0.00010136,2]
[423388007,1780074650000,-1567.21,0.00010136,2]
[423388018,1780074650000,-1807.05,0.00010136,2]
[423388011,1780074650000,-500.0,0.00010136,2]
[423388009,1780074650000,-500.0,0.00010136,2]
[423388015,1780074650000,-591.15,0.00010136,2]
[423388014,1780074650000,-500.0,0.00010136,2]
[423388016,1780074650000,-3745.47,0.00010136,2]
[423388012,1780074650000,-1026.4926,0.00010136,2]
[423388028,1780074650000,-500.0,0.0001041,2]
[423388029,1780074650000,-500.0,0.0001041,2]
[423388020,1780074650000,-500.0,0.00010136,2]
[423388013,1780074650000,-500.0,0.00010136,2]
[423388030,1780074650000,-500.0,0.0001041,2]
[423388033,1780074650000,-1348.75,0.0001041,2]
[423388032,1780074650000,-500.0,0.0001041,2]
[423388031,1780074650000,-944.99,0.0001041,2]
[423388027,1780074650000,-500.0,0.0001041,2]
[423388025,1780074650000,-537.68,0.00010136,2]
[423388022,1780074650000,-500.0,0.00010136,2]
[423388035,1780074650000,-552.58,0.0001041,2]
[423388024,1780074650000,-1129.09,0.00010136,2]
[423388023,1780074650000,-500.0,0.00010136,2]
[423388021,1780074650000,-500.0,0.00010136,2]
[423388019,1780074650000,-625.84,0.00010136,2]
[423388026,1780074650000,-500.0,0.00010136,2]
[423388105,1780074651000,-1129.09,0.00010684,2]
[423388109,1780074651000,-823.0,0.00010828,2]
[423388104,1780074651000,-500.0,0.00010684,2]
[423388103,1780074651000,-500.0,0.00010684,2]
[423388102,1780074651000,-500.0,0.00010684,2]
[423388112,1780074651000,-500.0,0.00010958,2]
[423388111,1780074651000,-519.25,0.00010958,2]
[423388110,1780074651000,-250.0,0.00010874,2]
[423388101,1780074651000,-500.0,0.00010684,2]
[423388097,1780074651000,-591.15,0.00010684,2]
[423388095,1780074651000,-1026.4926,0.00010684,2]
[423388093,1780074651000,-500.0,0.00010684,2]
[423388100,1780074651000,-1807.05,0.00010684,2]
[423388106,1780074651000,-500.0,0.00010684,2]
[423388118,1780074651000,-552.58,0.00010958,2]
[423388108,1780074651000,-195.2216,0.00010821,2]
[423388113,1780074651000,-500.0,0.00010958,2]
[423388114,1780074651000,-944.99,0.00010958,2]
[423388126,1780074651000,-534.45,0.00010958,2]
[423388125,1780074651000,-572.53,0.00010958,2]